fUSD/lending_fUSD_20251025
["ID","MTS","AMOUNT","RATE_DAILY","PERIOD"]
[392392123,1761424120380,1153.53907443,0.00036925,120]
[392392124,1761424121267,757.1706349,0.00036925,60]
[392392125,1761424122116,1087.30565319,0.00036925,30]
[392392126,1761424122221,875.313276,0.00036925,120]
[392392127,1761424122921,194.18225221,0.00036925,120]
[392392128,1761424123258,374.20864298,0.00036925,120]
[392392129,1761424123330,998.31072751,0.00036925,30]
[392392130,1761424123365,217.37087982,0.00036925,30]
[392392131,1761424123487,446.03555892,0.00036925,30]
[392392132,1761424123807,720.51251833,0.00036925,120]
[392392133,1761424123842,790.55070674,0.00036925,30]
[392392134,1761424123897,302.4178081,0.00036925,120]
[392392135,1761424123937,473.59741256,0.00036925,30]
[392392136,1761424124083,751.12103553,0.00036925,30]
[392392137,1761424124680,913.63843069,0.00036925,120]
[392392138,1761424124746,770.94627736,0.00036925,60]
[392392139,1761424125109,186.75848012,0.00036925,120]
[392392140,1761424125186,365.3458617,0.00036925,120]
[392392141,1761424125828,346.12250748,0.00036925,120]
[392392142,1761424125918,765.76454147,0.00036925,30]
[392392143,1761424126079,386.52556029,0.00036925,30]
[392392144,1761424126117,500.0,0.00036925,120]
[392392145,1761424126148,1236.36488014,0.00036925,120]
[392392146,1761424126361,734.01652889,0.00036925,120]
[392392147,1761424126776,184.19040103,0.00036925,120]
[392392148,1761424127127,1053.32570283,0.00036925,120]
[392392168,1761424232279,-531.67165279,0.00021,2]
[392392169,1761424232291,-386.53323415,0.00021,2]
[392392170,1761424232301,-2001.56371117,0.00021,2]
[392392171,1761424232337,-271.91129923,0.00021,2]
[392392172,1761424232348,-404.53844161,0.00021,2]
[392392173,1761424232370,-3153.78166105,0.00021,2]
[392392174,1761424232380,-173.01932563,0.00024732,2]
[392392175,1761424232390,-257.33364253,0.00024832,2]
[392392176,1761424232399,-204.61636273,0.00024932,2]
[392392177,1761424232409,-1037.63,0.00025,2]
[392392178,1761424232418,-151.0,0.00025505,2]
[392392179,1761424232428,-151.0,0.00025521,2]
[392392180,1761424232437,-151.0,0.00025616,2]
[392392181,1761424232448,-175.0,0.0003,14]
[392392182,1761424232457,-216.805222,0.00031763,2]
[392392183,1761424232467,-400.0,0.00031923,2]
[392392184,1761424232476,-277.35679052,0.00031925,2]
[392392185,1761424232485,-177.26988155,0.00031944,2]
[392392186,1761424232497,-10997.3376976,0.00031944,2]
[392392187,1761424232513,-949.26641985,0.00031944,2]
[392392188,1761424232538,-196.1161529,0.00031944,2]
[392392189,1761424232559,-181.06861455,0.00031944,2]
[392392192,1761424232583,-1114.63276947,0.00031944,2]
[392392193,1761424232618,-1044.21073278,0.00031944,2]
[392392194,1761424232635,-251.88379005,0.00032,120]
[392392195,1761424232655,-192.10772002,0.00032,120]
[392392196,1761424232675,-185.19482531,0.00032,120]
[392392197,1761424232694,-1543.87164121,0.00032,120]
[392392198,1761424232714,-399.31446359,0.00032,120]
[392392199,1761424232732,-213.93538049,0.00032,120]
[392392202,1761424232753,-198.75553108,0.00032,120]
[392392204,1761424232768,-232.17683808,0.00032,120]
[392392205,1761424232786,-1000.86856511,0.00032,7]
[392392206,1761424232800,-168.0,0.00032189,2]
[392392207,1761424232817,-299.99459039,0.000322,2]
[392392208,1761424232831,-3587.30612145,0.00032217,2]
[392392209,1761424232852,-439.42406857,0.00032217,2]
[392392214,1761424240382,-173.2,0.00029477,2]
[392392215,1761424240392,-91.57279981,0.00032217,2]
[392392216,1761424240544,-510.46649624,0.00032217,2]
[392392222,1761424243307,-371.23051393,0.00032217,2]
[392392223,1761424243317,-180.12488329,0.00032248,2]
[392392224,1761424243520,-204.36511671,0.00032248,2]
[392392225,1761424243529,-112.55645923,0.0003225,2]
[392392226,1761424243541,-55.44354077,0.0003225,2]
[392392227,1761424243551,-1000.0,0.00032815,2]
[392392228,1761424243561,-168.0,0.00032844,2]
[392392229,1761424243570,-476.4830027,0.00032845,2]
[392392230,1761424243579,-94.84836067,0.00032876,2]
[392392231,1761424243591,-105.15163933,0.00032876,2]
[392392232,1761424243600,-151.0,0.00032877,120]
[392392233,1761424243609,-192.10411232,0.00033,120]
[392392234,1761424243620,-59.77967773,0.00033,120]
[392392235,1761424243630,-192.10772002,0.00033,120]
[392392236,1761424243640,-185.19482531,0.00033,120]
[392392237,1761424243650,-58.59427294,0.00033,120]
[392392238,1761424246269,-1485.27736827,0.00033,120]
[392392239,1761424246280,-399.31446359,0.00033,120]
[392392240,1761424246289,-1000.0,0.00033089,2]
[392392241,1761424246299,-873.74,0.0003315,34]
[392392242,1761424246308,-507.47197351,0.0003315,2]
[392392243,1761424246318,-200.0,0.00033157,10]
[392392244,1761424246329,-16867.0664501,0.00033191,2]
[392392245,1761424246339,-166.66,0.00033202,2]
[392392246,1761424246348,-200.0,0.0003329,2]
[392392247,1761424246358,-287.61899177,0.00033294,2]
[392392248,1761424246367,-1000.0,0.00033324,2]
[392392249,1761424246376,-1000.0,0.00033363,2]
[392392250,1761424246387,-183.3,0.000334,28]
[392392251,1761424246396,-200.0,0.000334,8]
[392392252,1761424246407,-265.652,0.00033423,2]
[392392253,1761424246416,-1511.9,0.00033424,2]
[392392254,1761424246427,-150.0,0.00033424,2]
[392392255,1761424246437,-592.38026867,0.00033424,2]
[392392256,1761424246446,-150.0,0.00033424,2]
[392392257,1761424246455,-1025.46879091,0.00033424,2]
[392392258,1761424246464,-150.0,0.00033424,2]
[392392259,1761424246475,-5893.2953204,0.00033424,2]
[392392260,1761424246484,-170.41672645,0.00033424,2]
[392392261,1761424246495,-26.31004255,0.00033424,2]
[392392262,1761424246514,-559.67550347,0.00033424,2]
[392392263,1761424246523,-244.79489272,0.0003344,2]
[392392264,1761424246542,-243.37510728,0.0003344,2]
[392392265,1761424246551,-150.0,0.00033456,2]
[392392266,1761424246561,-150.0,0.00033456,120]
[392392267,1761424246570,-26.84771924,0.00033637,2]
[392392271,1761424261235,200.0,0.00036925,30]
[392392274,1761424324963,281.73427173,0.00036925,30]
[392392275,1761424327964,500.0,0.00036925,30]
[392392276,1761424328917,500.0,0.00036925,30]
[392392277,1761424331716,151.0,0.00036925,30]
[392392278,1761424332320,151.0,0.00036925,30]
[392392279,1761424332948,151.0,0.00036925,30]
[392392280,1761424333557,151.0,0.00036925,30]
[392392281,1761424334151,151.0,0.00036925,30]
[392392282,1761424334748,151.0,0.00036925,30]
[392392283,1761424335402,151.0,0.00036925,30]
[392392284,1761424336012,151.0,0.00036925,30]
[392392285,1761424336618,151.0,0.00036925,30]
[392392286,1761424337277,151.0,0.00036925,30]
[392392287,1761424338003,151.0,0.00036925,30]
[392392288,1761424338506,151.0,0.00036925,30]
[392392289,1761424340045,151.0,0.00036925,30]
[392392290,1761424340311,151.0,0.00036925,30]
[392392291,1761424342903,200.0,0.00036925,30]
[392392292,1761424343466,300.0,0.00036925,30]
[392392293,1761424364160,214.9,0.00036925,30]
[392392294,1761424364463,214.9,0.00036925,30]
[392392340,1761424560656,200.0,0.00036925,30]
[392392342,1761424570602,169.20172258,0.000315,120]
[392392345,1761424624919,150.0,0.00027425,120]
[392392346,1761424627599,603.57419146,0.00036925,30]
[392392347,1761424629993,466.54044407,0.00036925,30]
[392392351,1761424645292,200.0,0.00036925,30]
[392392352,1761424646192,300.0,0.00036925,30]
[392392364,1761424686251,195.0,0.00027425,120]
[392392365,1761424686370,195.0,0.00026178,120]
[392392366,1761424687317,2500.0,0.00027425,120]
[392392367,1761424687428,2500.0,0.00026178,120]
[392392368,1761424687544,2500.0,0.00028615,120]
[392392369,1761424687655,737.12125451,0.00028615,120]
[392392384,1761424745451,300.0,0.00027425,120]
[392392418,1761424860531,200.0,0.00036924,30]
[392392433,1761424894410,375.0,0.00036924,30]
[392392434,1761424906844,1000.0,0.00036924,30]
[392392458,1761424949442,1000.0,0.00036924,120]
[392392617,1761424987910,932.6997093,0.00036924,50]
[392392620,1761424993077,428.94980399,0.00036924,120]
[392392622,1761425001121,1000.0,0.00036924,60]
[392392626,1761425014076,1000.0,0.00036924,60]
[392392632,1761425042584,150.0,0.00027425,120]
[392392634,1761425043836,195.0,0.00027425,120]
[392392635,1761425043973,195.0,0.00026178,120]
[392392636,1761425044094,195.0,0.00029606,120]
[392392637,1761425045148,1049.29061305,0.00027425,120]
[392392638,1761425046021,300.0,0.00027425,120]
[392392639,1761425046121,300.0,0.00029606,120]
[392392640,1761425046219,300.0,0.00029606,120]
[392392641,1761425046444,300.0,0.00029606,120]
[392392642,1761425046590,432.60836671,0.00029606,120]
[392392643,1761425047625,300.0,0.00027425,120]
[392392644,1761425047732,300.0,0.00028381,120]
[392392645,1761425052044,1000.0,0.00036924,60]
[392392646,1761425057801,314.55067941,0.00036924,60]
[392392649,1761425077542,1000.0,0.00036924,60]
[392392652,1761425090274,1000.0,0.00036924,60]
[392392658,1761425095241,1000.0,0.00036924,120]
[392392667,1761425103026,1000.0,0.00036924,120]
[392392670,1761425106393,195.0,0.00027425,120]
[392392671,1761425106436,195.0,0.00026178,120]
[392392672,1761425106476,195.0,0.00028631,120]
[392392673,1761425107897,300.0,0.00027425,120]
[392392674,1761425108008,300.0,0.00028631,120]
[392392675,1761425108088,300.0,0.00028631,120]
[392392676,1761425108200,300.0,0.00028631,120]
[392392677,1761425108330,300.0,0.00028631,120]
[392392685,1761425111972,621.0,0.00036924,50]
[392392714,1761425141198,1000.0,0.00036924,60]
[392392718,1761425164990,195.0,0.00027425,120]
[392392719,1761425166454,300.0,0.00027425,120]
[392392720,1761425166547,300.0,0.00028615,120]
[392392721,1761425166747,300.0,0.00028615,120]
[392392722,1761425166852,300.0,0.00028615,120]
[392392723,1761425166949,300.0,0.00028615,120]
[392392731,1761425225808,300.0,0.00027425,120]
[392392732,1761425225935,300.0,0.00028615,120]
[392392733,1761425226039,300.0,0.00028615,120]
[392392734,1761425226180,300.0,0.00028615,120]
[392392743,1761425237868,259.52,0.00013699,2]
[392392760,1761425261707,621.0,0.00036924,50]
[392392761,1761425268385,932.6997093,0.00036924,50]
[392392762,1761425271204,428.94980399,0.00036924,120]
[392392763,1761425273962,1000.0,0.00036924,60]
[392392786,1761425275967,621.0,0.00036924,50]
[392392787,1761425276227,932.6997093,0.00036924,50]
[392392788,1761425278953,428.94980399,0.00036924,120]
[392392789,1761425281447,932.6997093,0.00036924,50]
[392392791,1761425282327,621.0,0.00036924,50]
[392392792,1761425285491,984.72783078,0.00036924,50]
[392392793,1761425286280,1000.0,0.00036924,60]
[392392794,1761425286695,428.94980399,0.00036924,120]
[392392798,1761425294009,1000.0,0.00036924,120]
[392392799,1761425294643,428.94980399,0.00036924,120]
[392392800,1761425295554,621.0,0.00036924,50]
[392392811,1761425301410,932.6997093,0.00036924,50]
[392392812,1761425301599,621.0,0.00036924,50]
[392392824,1761425302467,428.94980399,0.00036924,120]
[392392825,1761425306051,1000.0,0.00036924,60]
[392392826,1761425308289,621.0,0.00036924,50]
[392392827,1761425309239,932.6997093,0.00036924,50]
[392392828,1761425310087,428.94980399,0.00036924,120]
[392392829,1761425311102,310.0,0.00036924,120]
[392392830,1761425312759,932.6997093,0.00036924,50]
[392392831,1761425315453,311.0,0.00036924,50]
[392392849,1761425318652,984.72783078,0.00036924,50]
[392392858,1761425322862,1000.0,0.00036924,60]
[392392862,1761425335886,1000.0,0.00036924,60]
[392392869,1761425348377,1000.0,0.00036924,120]
[392392878,1761425365167,314.55067941,0.00036925,60]
[392392891,1761425398122,621.0,0.00036925,50]
[392392892,1761425399227,1000.0,0.00036925,60]
[392392898,1761425404299,428.94980399,0.00036925,120]
[392392900,1761425405042,932.6997093,0.00036925,50]
[392392909,1761425407650,176.0,0.000235,3]
[392392910,1761425407859,175.0,0.000235,3]
[392392911,1761425408401,175.0,0.000235,3]
[392392912,1761425408453,175.0,0.000235,3]
[392392913,1761425408602,175.0,0.000235,3]
[392392914,1761425410752,158.0,0.000235,3]
[392392915,1761425410977,155.0,0.000235,3]
[392392916,1761425411205,155.0,0.000235,3]
[392392918,1761425411460,155.0,0.000235,3]
[392392919,1761425411692,155.0,0.000235,3]
[392392920,1761425412167,155.0,0.000235,3]
[392392922,1761425422104,1000.0,0.00036925,60]
[392392939,1761425431429,-259.52,0.00020187,2]
[392392940,1761425431439,-195.0,0.00020692,2]
[392392941,1761425431448,-195.0,0.00021197,2]
[392392942,1761425431457,-1200.0,0.00022205,2]
[392392943,1761425431467,-300.0,0.00022205,2]
[392392944,1761425431476,-300.0,0.00022205,2]
[392392945,1761425431486,-300.0,0.00022206,2]
[392392946,1761425431495,-187.4775085,0.00022206,2]
[392392947,1761425431504,-195.0,0.00022206,2]
[392392948,1761425431514,-1049.29061305,0.00022206,2]
[392392949,1761425431523,-195.0,0.00022206,2]
[392392950,1761425431532,-300.0,0.00022559,2]
[392392951,1761425431545,-195.0,0.00023312,2]
[392392952,1761425431554,-420.0,0.00024125,2]
[392392953,1761425431566,-640.0,0.00024237,2]
[392392954,1761425431576,-500.0,0.00024932,2]
[392392955,1761425431585,-410.0,0.0002621,2]
[392392956,1761425431595,-259.52,0.00026676,2]
[392392957,1761425431604,-277.35679052,0.00031912,2]
[392392958,1761425431614,-200.0,0.00031929,3]
[392392959,1761425431623,-1600.0,0.0003193,3]
[392392960,1761425431632,-750.433,0.00031931,30]
[392392961,1761425431645,-3414.0,0.00031932,2]
[392392962,1761425431654,-572.0,0.00031932,2]
[392392963,1761425431664,-922.193,0.00031932,2]
[392392964,1761425431674,-2054.0,0.00031932,2]
[392392965,1761425431683,-1592.0,0.00031932,2]
[392392966,1761425431692,-620.663,0.00031932,2]
[392392968,1761425431701,-1312.0,0.00031932,2]
[392392969,1761425431712,-903.0,0.00031932,2]
[392392970,1761425431721,-1310.423,0.00031932,2]
[392392971,1761425431731,-1270.0,0.00031932,2]
[392392972,1761425431740,-818.0,0.00031932,2]
[392392973,1761425431751,-3488.0,0.00031932,2]
[392392974,1761425431761,-85.12308794,0.00031932,2]
[392392975,1761425431773,-312.0,0.00031932,2]
[392392976,1761425431783,-421.82543743,0.00031932,2]
[392392977,1761425431802,-344.77952441,0.00031932,2]
[392392978,1761425431814,-370.52181997,0.00031932,2]
[392392979,1761425431825,-1075.43,0.00031932,2]
[392392980,1761425431843,-2856.97393895,0.00031932,2]
[392392981,1761425431862,-1116.3461913,0.00031932,2]
[392392983,1761425431871,-662.273,0.00031932,2]
[392392984,1761425431880,-239.58867816,0.00032,120]
[392392985,1761425431890,-192.10772003,0.00032,120]
[392392986,1761425431899,-1235.09731297,0.00032,120]
[392392987,1761425431908,-188.91284253,0.00032,120]
[392392989,1761425431918,-150.0,0.00032289,2]
[392392991,1761425431927,-150.0,0.00032289,120]
[392392993,1761425431936,-150.0,0.00032315,2]
[392392995,1761425431945,-300.0,0.0003235,7]
[392392996,1761425431955,-1000.0,0.00032368,2]
[392392997,1761425431965,-2751.0,0.00032379,120]
[392392998,1761425431974,-789.84,0.0003243,120]
[392392999,1761425431983,-200.0,0.00032512,2]
[392393000,1761425431993,-200.0,0.00032539,2]
[392393001,1761425432002,-250.0,0.00032568,2]
[392393002,1761425432011,-398.23,0.00032575,2]
[392393003,1761425432021,-167.09,0.00032624,2]
[392393004,1761425432030,-500.0,0.00032798,2]
[392393005,1761425432039,-500.0,0.00032798,2]
[392393006,1761425432049,-222.9648685,0.00032798,2]
[392393007,1761425432059,-699.88,0.00032799,120]
[392393008,1761425432069,-161.06,0.00032815,2]
[392393009,1761425432078,-1000.0,0.00032815,2]
[392393010,1761425432088,-192.10772003,0.00033,120]
[392393011,1761425432097,-239.58867816,0.00033,120]
[392393012,1761425432106,-1235.09731297,0.00033,120]
[392393013,1761425432115,-188.91284253,0.00033,120]
[392393014,1761425432124,-1000.0,0.00033089,2]
[392393015,1761425432142,-259.52,0.00033165,2]
[392393016,1761425432153,-15952.0165222,0.00033171,2]
[392393017,1761425432163,-3616.3490647,0.00033171,2]
[392393018,1761425432172,-1545.3836374,0.00033171,2]
[392393019,1761425432182,-3151.8906932,0.00033171,2]
[392393020,1761425432191,-4186.0,0.000332,5]
[392393021,1761425432201,-287.61899177,0.00033281,2]
[392393022,1761425432211,-1000.0,0.00033363,2]
[392393023,1761425432221,-200.0,0.00033368,10]
[392393024,1761425432230,-1000.0,0.00033637,2]
[392393025,1761425432240,-170.41672644,0.00033637,2]
[392393026,1761425432249,-292.99277301,0.00033637,2]
[392393027,1761425432259,-1511.9,0.00033698,2]
[392393028,1761425432269,-300.0,0.00033757,2]
[392393029,1761425432279,-168.0,0.00033791,2]
[392393030,1761425432289,-300.0,0.000338,12]
[392393031,1761425432298,-3031.5,0.00033844,10]
[392393032,1761425432308,-9999.99,0.00033844,2]
[392393033,1761425432317,-999.99,0.00033844,2]
[392393034,1761425432327,-151.0,0.00033844,30]
[392393035,1761425432337,-482.448133,0.00033844,30]
[392393036,1761425432348,-482.448133,0.00033844,30]
[392393037,1761425432361,-482.448133,0.00033844,30]
[392393038,1761425432370,-482.448133,0.00033844,30]
[392393039,1761425432380,-151.0,0.00033844,30]
[392393040,1761425432389,-151.0,0.00033844,30]
[392393041,1761425432398,-151.0,0.00033844,30]
[392393042,1761425432408,-151.0,0.00033844,30]
[392393043,1761425432417,-259.954531,0.00033844,30]
[392393044,1761425432427,-151.0,0.00033844,30]
[392393045,1761425432436,-151.0,0.00033844,30]
[392393046,1761425432445,-151.0,0.00033844,30]
[392393047,1761425432454,-151.0,0.00033844,30]
[392393048,1761425432463,-151.0,0.00033844,30]
[392393049,1761425432473,-151.0,0.00033844,30]
[392393050,1761425432482,-286.927602,0.00033844,30]
[392393051,1761425432491,-151.0,0.00033844,30]
[392393052,1761425432501,-606.06747653,0.00033858,2]
[392393053,1761425432510,-151.0,0.0003386,30]
[392393054,1761425432519,-151.0,0.0003386,30]
[392393055,1761425432529,-151.0,0.0003386,30]
[392393056,1761425432540,-151.0,0.0003386,30]
[392393057,1761425432550,-151.0,0.0003386,30]
[392393058,1761425432560,-151.0,0.0003386,30]
[392393059,1761425432575,-151.0,0.0003386,30]
[392393060,1761425432585,-151.0,0.0003386,30]
[392393061,1761425432596,-1000.0,0.0003386,2]
[392393062,1761425432606,-478.2708,0.0003386,120]
[392393063,1761425432616,-2500.0,0.0003386,2]
[392393064,1761425432625,-1753.4391062,0.00033867,2]
[392393065,1761425432634,-153.84320094,0.00033867,2]
[392393066,1761425432643,-160.02458894,0.00033868,15]
[392393067,1761425432653,-5000.0,0.0003387,2]
[392393068,1761425432662,-192.10772003,0.000339,120]
[392393069,1761425432672,-239.58867816,0.000339,120]
[392393070,1761425432681,-1235.09731297,0.000339,120]
[392393071,1761425432694,-188.91284253,0.000339,120]
[392393072,1761425432703,-600.0,0.000339,12]
[392393073,1761425432714,-1000.0,0.00033911,2]
[392393074,1761425432724,-343.31,0.00033957,2]
[392393075,1761425432735,-343.31,0.00033957,2]
[392393076,1761425432744,-19712.5618418,0.00033958,3]
[392393077,1761425432757,-24576.01097634,0.00033958,3]
[392393089,1761425437304,-622.34993107,0.00031932,2]
[392393090,1761425437315,-5835.65006893,0.00031932,2]
[392393091,1761425437324,-150.0,0.00033088,3]
[392393092,1761425437333,-151.0,0.00033844,30]
[392393093,1761425437342,-151.0,0.00033844,30]
[392393094,1761425437351,-151.0,0.00033844,30]
[392393095,1761425437360,-151.0,0.00033844,30]
[392393096,1761425437370,-151.0,0.00033844,30]
[392393097,1761425437379,-292.992773,0.00033957,2]
[392393098,1761425437388,-22648.06398796,0.00033958,3]
[392393099,1761425437402,-602.0833623,0.00033958,3]
[392393100,1761425437417,-16612.2337703,0.00033958,3]
[392393101,1761425437426,-151.0,0.00033958,30]
[392393102,1761425437435,-151.0,0.00033958,30]
[392393103,1761425437444,-242.155172,0.00033958,30]
[392393104,1761425437453,-268.336633,0.00033958,30]
[392393105,1761425437463,-151.0,0.00033958,30]
[392393106,1761425437472,-482.448133,0.00033958,30]
[392393107,1761425437481,-482.448133,0.00033958,30]
[392393108,1761425437490,-482.448133,0.00033958,30]
[392393109,1761425437499,-482.448133,0.00033958,30]
[392393110,1761425437508,-151.0,0.00033958,30]
[392393111,1761425437517,-151.0,0.00033958,30]
[392393112,1761425437526,-151.0,0.00033958,30]
[392393113,1761425437535,-151.0,0.00033958,30]
[392393114,1761425437544,-151.0,0.00033958,30]
[392393115,1761425437554,-151.0,0.00033958,30]
[392393116,1761425437564,-151.0,0.00033958,30]
[392393117,1761425437575,-151.0,0.00033958,30]
[392393118,1761425437584,-151.0,0.00033958,30]
[392393119,1761425437594,-151.0,0.00033958,30]
[392393120,1761425437603,-299.64294549,0.00033959,7]
[392393121,1761425437614,-220.40440591,0.00033959,7]
[392393122,1761425437623,-500.0,0.00033959,7]
[392393123,1761425437632,-151.0,0.0003396,30]
[392393124,1761425437645,-151.0,0.0003396,30]
[392393125,1761425437654,-482.448133,0.0003396,30]
[392393126,1761425437664,-482.448133,0.0003396,30]
[392393127,1761425437673,-482.448133,0.0003396,30]
[392393128,1761425437683,-482.448133,0.0003396,30]
[392393129,1761425437692,-476.4830027,0.0003396,3]
[392393130,1761425437701,-12021.5648484,0.0003396,3]
[392393131,1761425437713,-500.0,0.00033965,9]
[392393132,1761425437723,-500.0,0.00033965,9]
[392393133,1761425437732,-590.33861247,0.00033965,9]
[392393134,1761425437741,-561.68129233,0.00033965,9]
[392393135,1761425437750,-500.0,0.00033965,9]
[392393136,1761425437759,-500.0,0.00033965,9]
[392393137,1761425437768,-540.46,0.00033965,9]
[392393138,1761425437778,-500.0,0.00033965,9]
[392393139,1761425437787,-712.0,0.00033965,2]
[392393140,1761425437795,-535.57916124,0.00033965,9]
[392393141,1761425437804,-500.0,0.00033965,9]
[392393142,1761425437814,-500.0,0.00033965,9]
[392393143,1761425437823,-500.0,0.00033965,9]
[392393144,1761425437831,-500.0,0.00033965,9]
[392393145,1761425437840,-501.1457141,0.00033965,9]
[392393146,1761425437849,-501.27718885,0.00033965,9]
[392393147,1761425437858,-500.0,0.00033965,9]
[392393148,1761425437867,-500.0,0.00033965,9]
[392393149,1761425437877,-500.0,0.00033965,9]
[392393150,1761425437885,-500.0,0.00033965,9]
[392393151,1761425437895,-151.0,0.00033965,30]
[392393152,1761425437904,-500.0,0.00033965,9]
[392393153,1761425437914,-868.13,0.00033965,9]
[392393154,1761425437923,-151.0,0.00033965,30]
[392393155,1761425437932,-500.0,0.00033965,9]
[392393156,1761425437941,-500.0,0.00033965,2]
[392393157,1761425437950,-645.71,0.00033965,9]
[392393158,1761425437959,-500.0,0.00033965,2]
[392393159,1761425437968,-398.77429023,0.00033965,9]
[392393160,1761425437980,-101.22570977,0.00033965,9]
[392393161,1761425437989,-500.0,0.00033965,2]
[392393162,1761425437999,-151.0,0.00033965,30]
[392393163,1761425438008,-151.0,0.00033965,30]
[392393164,1761425438018,-187.47429023,0.00033965,9]
[392393165,1761425438031,-312.52570977,0.00033965,9]
[392393166,1761425438041,-500.0,0.00033965,9]
[392393167,1761425438050,-151.0,0.00033965,30]
[392393168,1761425438060,-500.0,0.00033965,2]
[392393169,1761425438070,-151.0,0.00033965,30]
[392393170,1761425438079,-151.0,0.00033965,30]
[392393171,1761425438089,-211.14028968,0.00033966,9]
[392393172,1761425438098,-523.35788627,0.00033966,9]
[392393173,1761425438107,-581.52005807,0.00033966,9]
[392393174,1761425438117,-517.0333546,0.00033966,9]
[392393175,1761425438126,-503.65009334,0.00033966,9]
[392393176,1761425438136,-506.5860984,0.00033966,9]
[392393177,1761425438145,-504.83706507,0.00033966,9]
[392393178,1761425438154,-500.0,0.00033966,9]
[392393179,1761425438163,-500.0,0.00033966,9]
[392393180,1761425438172,-537.16,0.00033966,9]
[392393181,1761425438181,-503.33765977,0.00033966,9]
[392393182,1761425438191,-509.10020502,0.00033966,9]
[392393183,1761425438200,-500.0,0.00033966,9]
[392393184,1761425438210,-500.0,0.00033966,9]
[392393185,1761425438220,-528.29683834,0.00033966,9]
[392393186,1761425438229,-500.0,0.00033966,9]
[392393187,1761425438238,-500.5245051,0.00033966,9]
[392393188,1761425438247,-500.0,0.00033966,9]
[392393189,1761425438256,-500.0,0.00033966,9]
[392393190,1761425438266,-500.0,0.00033966,9]
[392393191,1761425438275,-516.25861901,0.00033966,9]
[392393192,1761425438285,-500.0,0.00033966,9]
[392393193,1761425438295,-502.85589132,0.00033966,9]
[392393194,1761425438304,-500.0,0.00033966,9]
[392393195,1761425438313,-500.0,0.00033966,9]
[392393196,1761425438434,-500.0,0.00033966,9]
[392393197,1761425438443,-500.0,0.00033966,9]
[392393198,1761425438452,-500.0,0.00033966,9]
[392393199,1761425438461,-500.0,0.00033966,9]
[392393200,1761425438471,-500.0,0.00033966,9]
[392393201,1761425438480,-500.0,0.00033966,9]
[392393202,1761425438489,-359.40308918,0.00033966,9]
[392393203,1761425438499,-500.0,0.00033966,9]
[392393204,1761425438508,-500.0,0.00033966,9]
[392393205,1761425438517,-500.0,0.00033966,9]
[392393206,1761425438526,-500.0,0.00033966,9]
[392393207,1761425438535,-500.0,0.00033966,9]
[392393208,1761425438545,-500.0,0.00033966,9]
[392393209,1761425438555,-155.07265451,0.00033966,9]
[392393210,1761425438565,-500.0,0.00033966,9]
[392393211,1761425438575,-709.21,0.00033966,9]
[392393212,1761425438585,-344.10905518,0.00033966,9]
[392393213,1761425438594,-500.0,0.00033966,9]
[392393214,1761425438603,-500.0,0.00033966,9]